bitfinex-derivatives/quotes_ETHF0:USTF0_20251001
["timestamp","ask_amount","ask_price","bid_price","bid_amount"]
[1759325654255,3.2078,4294.3,4294.2,0.3337]
[1759325654855,0.66488,4294.9,4294.4,0.41891]
[1759325654856,0.4189,4294.7,4294.4,0.41891]
[1759325655059,3.353,4294.8,4294.0,0.4757]
[1759325655364,3.353,4294.3,4293.7,0.00166327]
[1759325655663,3.353,4294.3,4293.7,0.75435327]
[1759325655856,3.62674,4294.3,4293.7,0.33536327]
[1759325656056,0.41895,4294.2,4294.1,0.3337]
[1759325656255,3.2078,4294.3,4294.2,0.3337]
[1759325656754,0.00185805,4295.7,4294.2,0.3337]
[1759325656755,3.2078,4294.8,4294.7,0.3337]
[1759325657062,3.2078,4294.8,4294.7,0.5797]
[1759325657265,3.2078,4295.4,4295.1,0.3337]
[1759325657452,0.41881,4295.6,4295.1,0.3337]
[1759325657659,0.00185805,4295.7,4295.6,0.3337]
[1759325658164,0.00185805,4295.7,4295.6,0.5797]
[1759325659756,0.00185805,4295.7,4295.6,0.3337]
[1759325659955,0.00185805,4295.7,4295.6,0.75251]
[1759325660958,0.00185805,4295.7,4295.6,5.75251]
[1759325662259,0.00185805,4295.7,4295.6,0.75251]
[1759325662565,0.00185805,4295.7,4295.6,0.3337]
[1759325662967,0.00185805,4295.7,4295.6,5.3337]
[1759325663166,3.2078,4296.7,4296.6,0.73911]
[1759325663460,3.2078,4296.7,4296.6,0.98511]
[1759325663660,3.2078,4297.7,4297.6,0.3334]
[1759325663967,3.2078,4297.7,4297.6,0.5794]
[1759325664168,3.20996002,4297.7,4297.6,0.58201525]
[1759325665068,3.20996002,4297.7,4297.6,0.00261525]
[1759325665069,3.34336002,4297.7,4297.6,0.00261525]
[1759325665773,3.34336002,4297.7,4297.6,0.33601525]
[1759325665774,3.20996002,4297.7,4297.6,0.33601525]
[1759325666068,3.20996002,4297.7,4297.6,0.00261525]
[1759325666660,3.34336002,4297.7,4297.6,0.00261525]
[1759325666868,3.20996002,4297.7,4297.6,0.00261525]
[1759325667070,3.20996002,4297.7,4297.6,0.33601525]
[1759325667676,3.20996002,4297.7,4297.6,0.00261525]
[1759325667878,3.34336002,4297.7,4297.6,0.00261525]
[1759325669170,3.58936002,4297.7,4297.6,0.00261525]
[1759325669374,0.1308,4297.1,4296.5,0.3334]
[1759325669679,0.41871,4296.6,4296.5,0.3334]
[1759325669880,0.41876,4296.1,4296.0,0.4653]
[1759325670370,0.54956,4296.1,4296.0,0.00190381]
[1759325670572,0.41885,4295.2,4295.1,0.3334]
[1759325670965,0.4189,4294.6,4294.5,0.4649]
[1759325671367,0.4189,4294.6,4293.9,40.8]
[1759325671572,0.4189,4294.6,4294.1,0.3334]
[1759325671573,0.41895,4294.2,4294.1,0.3334]
[1759325671774,0.41894,4294.3,4294.1,0.5197]
[1759325671976,0.41894,4294.3,4294.2,0.3334]
[1759325672278,0.41894,4294.3,4294.1,0.1863]
[1759325672474,0.54974,4294.3,4294.1,0.1863]
[1759325672776,0.41894,4294.3,4294.2,0.3334]
[1759325673166,0.41894,4294.3,4294.1,0.5197]
[1759325673372,0.41894,4294.3,4294.2,0.3334]
[1759325673773,3.75754,4294.3,4294.1,0.1863]
[1759325673977,0.1308,4294.2,4294.1,0.1863]
[1759325674178,0.62413582,4294.2,4294.1,0.1863]
[1759325675274,5.62413582,4294.2,4294.1,0.1863]
[1759325675473,0.54975,4294.1,4294.0,0.00187196]
[1759325675675,1.28908582,4294.1,4294.0,0.00187196]
[1759325677182,0.79575,4294.1,4294.0,0.00187196]
[1759325677782,0.41895,4294.1,4294.0,0.46677196]
[1759325677982,0.41895,4294.1,4294.0,0.00187196]
[1759325677983,0.54975,4294.1,4294.0,0.00187196]
[1759325678174,0.41895,4294.1,4294.0,0.00187196]
[1759325678376,0.41895,4294.1,4294.0,0.33527196]
[1759325678779,0.41895,4294.1,4294.0,0.46677196]
[1759325678978,3.2078,4294.3,4294.1,0.3334]
[1759325679284,0.1308,4294.1,4294.0,0.00187196]
[1759325679487,0.3768,4294.1,4294.0,0.00187196]
[1759325680782,0.41894,4294.2,4294.0,0.00187196]
[1759325680783,0.41894,4294.2,4294.1,0.3334]
[1759325680984,0.66494,4294.2,4294.1,0.3334]
[1759325681681,0.66494,4294.2,4294.0,0.00187196]
[1759325681883,0.79574,4294.2,4294.0,0.00187196]
[1759325682682,0.1308,4294.1,4294.0,0.00187196]
[1759325683382,0.41894,4294.2,4294.0,0.00187196]
[1759325683582,0.41894,4294.2,4294.0,0.33527196]
[1759325684182,0.3768,4294.1,4294.0,0.00187196]
[1759325684589,0.54978,4293.8,4293.7,1.96e-06]
[1759325684783,0.54978,4293.8,4292.9,0.3334]
[1759325684784,0.41906,4293.0,4292.9,0.3334]
[1759325684985,0.41915,4292.1,4292.0,0.1315]
[1759325685190,0.4192,4291.6,4291.5,0.1315]
[1759325685391,0.41925,4291.1,4291.0,0.3775]
[1759325685587,3.20995182,4291.1,4291.0,0.71371773]
[1759325685891,0.00215182,4291.1,4291.0,0.71371773]
[1759325686585,0.00215182,4291.1,4291.0,5.46771773]
[1759325686785,0.00215182,4291.1,4291.0,5.71371773]
[1759325687685,0.00215182,4291.1,4291.0,0.71371773]
[1759325688587,0.00215182,4291.1,4291.0,0.46771773]
[1759325689183,0.00215182,4291.1,4291.0,8.67551773]
[1759325689385,0.00215182,4291.1,4291.0,5.46771773]
[1759325689586,0.00215182,4291.1,4291.0,0.71371773]
[1759325690082,0.00215182,4291.1,4291.0,5.71371773]
[1759325691484,0.00215182,4291.1,4291.0,0.46771773]
[1759325691792,0.00215182,4291.1,4291.0,0.71371773]
[1759325692595,0.00215182,4291.1,4291.0,0.46771773]
[1759325693493,0.00215182,4291.1,4291.0,0.71371773]
[1759325693688,3.2078,4291.7,4291.6,0.3397]
[1759325694892,2.77243835,4291.7,4291.6,5.3397]
[1759325695294,3.2078,4292.8,4292.6,0.3397]
[1759325695496,3.62688,4292.8,4292.7,0.3397]
[1759325695893,3.2078,4292.8,4292.7,0.3397]
[1759325696292,3.20971431,4292.8,4292.7,0.3397]
[1759325697388,3.20971431,4292.8,4292.5,0.1332]
[1759325697389,0.41911,4292.5,4292.3,0.3397]
[1759325697588,0.41912,4292.4,4292.2,0.246]
[1759325697789,0.41912,4292.4,4292.1,0.41915]
[1759325697790,0.41912,4292.4,4292.3,0.3397]
[1759325697992,0.1259,4292.7,4292.0,0.4729]
[1759325698193,0.41915,4292.1,4292.0,0.1332]
[1759325698396,0.41915,4292.1,4292.0,0.4729]
[1759325698795,0.41911,4292.5,4292.1,0.75884]
[1759325698995,0.41909,4292.7,4292.6,0.3397]
[1759325699197,0.9123162,4292.7,4292.6,0.3397]
[1759325699701,3.20971431,4292.8,4292.7,0.3397]
[1759325700194,3.70351847,4292.8,4292.7,0.3397]
[1759325700398,3.20971431,4292.8,4292.7,0.3397]
[1759325700598,0.00191431,4292.8,4292.7,0.3397]
[1759325700795,0.41897,4293.9,4292.8,1.0477]
[1759325700999,0.9128169,4293.8,4293.6,0.3397]
[1759325701195,0.9128169,4293.8,4293.0,0.4729]
[1759325701196,0.41902,4293.4,4293.0,0.4729]
[1759325701394,3.2078,4293.4,4292.8,41.046]
[1759325701590,0.41905,4293.1,4292.9,0.3397]
[1759325701922,0.1278,4292.9,4292.6,0.3397]
[1759325702094,0.41913,4292.3,4292.1,0.3397]
[1759325702294,0.1278,4292.0,4291.9,0.1863]
[1759325702501,0.49413367,4292.0,4291.9,0.526]
[1759325703197,5.62193367,4292.0,4291.9,0.1863]
[1759325703401,5.62193367,4292.0,4291.0,0.47571773]
[1759325703402,0.41925,4291.1,4291.0,0.47571773]
[1759325703702,3.2078,4291.3,4291.1,0.3397]
[1759325703900,0.246,4292.0,4291.6,0.3397]
[1759325703901,0.41919,4291.8,4291.6,0.3397]
[1759325704100,3.2078,4291.9,4291.6,0.3397]
[1759325704304,0.41918,4291.8,4291.6,0.3397]
[1759325704799,0.4942661,4291.7,4291.6,0.3397]
[1759325705097,0.41919,4291.8,4291.6,0.3397]
[1759325705293,0.4192,4291.6,4291.5,0.1332]
[1759325705493,0.91344439,4291.6,4291.5,0.1332]
[1759325705693,0.49424439,4291.6,4291.5,0.1332]
[1759325705903,0.41919,4291.7,4291.6,0.3397]
[1759325706097,3.2078,4291.9,4291.0,0.13601773]
[1759325706098,0.41923,4291.3,4291.0,0.13601773]
[1759325706302,0.41919,4291.7,4291.6,0.3397]
[1759325706503,0.49418676,4291.7,4291.5,0.1332]
[1759325706700,0.4192,4291.7,4291.5,0.1332]
[1759325706905,0.41925,4291.2,4291.1,0.3397]
[1759325707100,0.91327468,4291.2,4291.1,0.3397]
[1759325707294,0.41918,4291.8,4291.2,0.41923]
[1759325707604,0.41918,4291.8,4291.0,3.34381773]
[1759325707605,3.2078,4292.0,4291.6,0.3397]
[1759325707806,0.4192,4291.7,4291.6,0.3397]
[1759325708306,0.49413119,4291.9,4291.6,0.3397]
[1759325708507,3.2078,4292.0,4291.8,0.41918]
[1759325708805,3.2078,4292.0,4291.9,0.3397]
[1759325709203,0.41911,4292.5,4292.3,0.41913]
[1759325709399,0.41909,4292.7,4292.5,0.1332]
[1759325709608,0.49445919,4292.6,4292.5,0.4729]
[1759325711201,0.41908,4292.8,4292.6,0.3397]
[1759325711504,0.4191,4292.6,4292.5,0.7199]
[1759325711699,3.2078,4293.0,4292.6,0.3397]
[1759325711898,0.4946987,4292.9,4292.5,0.3802]
[1759325712202,0.4946987,4292.8,4292.7,0.3397]
[1759325712395,0.4946987,4292.9,4292.7,0.75879]
[1759325712597,3.2078,4293.0,4292.9,0.75877]
[1759325712998,0.42159308,4293.1,4293.0,0.3397]
[1759325713303,0.41908,4292.8,4292.6,0.3397]
[1759325713506,0.49316745,4292.7,4292.6,0.3397]
[1759325713696,0.49316745,4292.7,4292.5,0.79931]
[1759325714000,0.00254308,4293.1,4293.0,0.4729]
[1759325714203,0.00254308,4293.1,4292.5,0.3802]
[1759325714404,0.49576847,4293.1,4293.0,0.3397]
[1759325714701,0.49576847,4293.1,4293.0,0.4729]
[1759325715204,0.49576847,4293.1,4293.0,0.7199]
[1759325715398,0.00254308,4293.1,4293.0,0.7199]
[1759325716300,0.00254308,4293.1,4293.0,8.9277]
[1759325716505,3.2078,4294.0,4293.9,0.75867]
[1759325716703,3.2078,4294.6,4293.9,0.5867]
[1759325716918,0.1304,4295.4,4293.9,0.5867]
[1759325716919,3.2078,4295.1,4295.0,0.89177]
[1759325717110,3.2078,4295.1,4295.0,0.4729]
[1759325717111,3.70102039,4295.1,4295.0,0.4729]
[1759325717299,0.41887,4295.0,4294.5,0.41891]
[1759325717608,3.70102039,4295.1,4294.6,0.3397]
[1759325717609,0.41889,4294.8,4294.6,0.3397]
[1759325717903,0.41889,4294.8,4294.7,0.3397]
[1759325718108,0.49268909,4295.0,4294.7,0.41889]
[1759325718411,0.49268909,4294.9,4294.8,0.3397]
[1759325718802,0.00173633,4295.1,4295.0,0.4729]
[1759325719416,3.2078,4296.1,4295.0,6.18037]
[1759325719609,3.2078,4296.1,4296.0,0.4496]
[1759325719804,3.69832499,4296.1,4295.5,0.1338]
[1759325720112,0.4188,4295.7,4295.6,0.5628]
[1759325720311,3.2078,4296.1,4295.7,0.3158]
[1759325720511,0.41879,4295.8,4295.7,0.3158]
[1759325721711,0.1256,4296.0,4295.2,0.3158]
[1759325721908,3.2078,4295.6,4295.2,0.3158]
[1759325722110,3.2078,4295.6,4295.1,0.3158]
[1759325722410,3.21004436,4296.1,4295.6,0.7346]
[1759325722612,3.21004436,4296.1,4296.0,0.4496]
[1759325723212,3.21004436,4296.1,4296.0,0.3158]
[1759325723517,3.21004436,4296.1,4296.0,0.4528]
[1759325723819,0.00224436,4296.1,4296.0,0.4528]
[1759325724023,0.00224436,4296.1,4296.0,5.4528]
[1759325724412,0.00224436,4296.1,4296.0,0.6998]
[1759325724810,3.21004436,4296.1,4296.0,0.6998]
[1759325725618,3.21004436,4296.1,4295.5,0.1338]
[1759325725619,0.41877,4296.0,4295.9,0.247]
[1759325725915,0.41877,4296.0,4295.9,0.5666]
[1759325726110,3.21004436,4296.1,4295.5,0.4534]
[1759325726417,3.62880436,4296.1,4296.0,0.3196]
[1759325726718,0.4188,4295.8,4295.6,0.3196]
[1759325726917,0.4188,4295.8,4295.7,0.3196]
[1759325727307,3.21004436,4296.1,4295.5,0.3808]
[1759325727513,3.21004436,4296.1,4296.0,0.4566]
[1759325727817,0.41881,4295.6,4295.5,0.4534]
[1759325728017,0.41881,4295.6,4295.5,0.7004]
[1759325728213,0.41879,4295.8,4295.5,0.79962]
[1759325728414,0.4188,4295.7,4295.6,0.3196]
[1759325728615,0.41879,4295.9,4295.5,0.79962]
[1759325728816,3.21004436,4296.1,4295.5,0.3808]
[1759325729012,3.21004436,4296.1,4295.6,0.3196]
[1759325729213,3.21004436,4296.1,4296.0,0.4566]
[1759325729214,0.00224436,4296.1,4296.0,0.4566]
[1759325729422,3.2078,4297.7,4296.5,0.4566]
[1759325729617,3.2078,4297.7,4297.4,0.3196]
[1759325729817,3.62641,4297.7,4297.5,0.5666]
[1759325730018,3.2078,4297.7,4297.4,0.247]
[1759325730214,0.73313,4297.5,4297.3,0.247]
[1759325730420,0.73555922,4297.5,4297.3,0.247]
[1759325730816,0.73555922,4297.5,4297.4,0.3196]
[1759325731220,0.3145,4297.4,4297.3,0.247]
[1759325732217,0.00242922,4297.5,4297.4,0.3196]
[1759325734017,0.00242922,4297.5,4297.4,3.5274]
[1759325734920,0.00242922,4297.5,4297.4,8.5274]
[1759325735120,0.41854,4298.4,4298.1,0.41856]
[1759325735320,0.3145,4298.3,4298.2,0.246]
[1759325735724,3.2078,4298.7,4298.3,0.3196]
[1759325735924,0.41854,4298.4,4298.3,0.3196]
[1759325736113,0.00277253,4298.4,4298.3,0.32202246]
[1759325736322,1.04619,4299.1,4298.3,0.32202246]
[1759325736323,3.2078,4299.3,4299.2,0.3196]
[1759325736625,0.41842,4299.7,4299.2,0.247]
[1759325736825,0.41842,4299.6,4299.3,0.247]
[1759325737123,0.73293,4299.5,4299.3,0.5666]
[1759325737327,0.41847,4299.1,4299.0,0.137]
[1759325737530,0.3145,4299.2,4299.0,0.5666]
[1759325737823,0.73296,4299.2,4299.1,0.3196]
[1759325738028,0.41846,4299.2,4299.1,0.3196]
[1759325738417,0.41846,4299.2,4299.0,0.247]
[1759325738617,0.41851,4298.7,4298.4,0.3196]
[1759325738826,0.41851,4298.7,4298.5,0.5666]
[1759325739018,0.41851,4298.7,4298.6,0.3196]
[1759325739222,0.41852,4298.6,4298.1,3.2078]
[1759325739531,0.41852,4298.6,4298.5,0.3196]
[1759325739824,3.2078,4298.9,4298.3,0.00242246]
[1759325740125,0.41852,4298.6,4298.4,0.3196]
[1759325740326,0.41853,4298.5,4298.4,0.3196]
[1759325741031,0.3145,4298.4,4298.3,0.00242246]
[1759325741618,3.5223,4298.4,4298.3,0.00242246]
[1759325743033,3.2078,4298.4,4298.3,0.32202246]
[1759325743219,3.5223,4298.4,4298.3,0.00242246]
[1759325743827,8.5223,4298.4,4298.3,0.00242246]
[1759325744022,0.41855,4298.3,4297.2,0.4406]
[1759325744224,0.41855,4298.3,4297.1,3.62646]
[1759325744225,3.2078,4297.3,4296.8,0.1861]
[1759325744728,3.62643,4297.4,4297.1,0.3196]
[1759325744922,3.2078,4298.0,4297.7,0.3196]
[1759325745121,0.41859,4297.9,4297.8,0.3196]
[1759325745328,3.2078,4298.0,4297.9,0.3196]
[1759325747027,0.3145,4297.8,4297.7,0.00252711]
[1759325747425,0.41858,4297.9,4297.8,0.3196]
[1759325747735,3.62638,4298.0,4297.9,0.3196]
[1759325747936,3.2078,4298.0,4297.9,0.3196]
[1759325748537,3.5223,4298.6,4297.8,0.3196]
[1759325748727,3.2078,4298.6,4298.5,0.87513]
[1759325748932,0.3145,4299.4,4299.2,0.41845]
[1759325749134,0.90951704,4299.3,4299.2,0.3196]
[1759325749434,0.41845,4299.3,4299.2,0.3196]
[1759325749835,0.73295,4299.3,4299.1,0.246]
[1759325750035,0.73295,4299.3,4299.1,0.5656]
[1759325750236,0.73557663,4299.5,4299.2,0.73805]
[1759325750438,0.90955115,4299.4,4299.3,0.3196]
[1759325750842,1.22405115,4299.4,4299.3,0.3196]
[1759325751036,0.73296,4299.2,4299.1,0.246]
[1759325751236,4.43195594,4299.2,4299.1,0.246]
[1759325751437,4.43195594,4299.2,4299.1,0.3196]
[1759325751640,3.94076,4299.2,4299.0,0.5656]
[1759325751845,3.2078,4299.2,4299.1,0.3196]
[1759325754129,3.2078,4299.2,4299.1,5.3196]
[1759325754939,3.2078,4299.2,4299.1,0.5656]
[1759325755441,3.2078,4299.2,4299.1,41.3656]
[1759325755943,0.00264663,4299.5,4299.4,0.74224]
[1759325756336,0.00264663,4299.5,4299.4,5.74224]
[1759325757338,0.00264663,4299.5,4299.4,46.78824]
[1759325758643,0.00264663,4299.5,4299.4,41.54224]
[1759325758841,0.00264663,4299.5,4299.4,41.78824]
[1759325759739,0.00264663,4299.5,4299.4,0.98824]
[1759325760034,0.31594663,4299.5,4299.4,0.41844]
[1759325760536,0.31594663,4299.5,4299.4,0.98824]
[1759325760739,0.31594663,4299.5,4299.4,0.246]
[1759325760944,0.3133,4299.4,4299.1,0.41846]
[1759325761245,0.41847,4299.1,4298.9,0.41848]
[1759325761433,0.41847,4299.1,4299.0,0.246]
[1759325761638,0.41852,4298.6,4298.2,0.3238]
[1759325761947,0.406,4299.0,4298.1,3.3939]
[1759325761948,0.3133,4298.5,4298.4,0.41853]
[1759325762144,0.3133,4298.5,4298.4,0.98833]
[1759325762337,0.3133,4298.5,4298.4,0.5698]
[1759325762539,0.4185,4298.8,4298.4,0.5698]
[1759325762740,0.3133,4298.6,4298.1,3.3939]
[1759325763049,0.73185,4298.2,4298.1,3.3939]
[1759325763341,1.22338224,4298.2,4298.1,0.246]
[1759325763647,0.3133,4297.9,4297.7,0.74492711]
[1759325763848,0.49153224,4297.8,4297.7,0.74492711]
[1759325764241,0.80492107,4297.8,4297.7,0.24852711]
[1759325764542,0.80492402,4297.8,4297.7,0.24852711]
[1759325764744,0.3133,4298.1,4297.9,0.41858]
[1759325764944,0.80491942,4298.0,4297.9,0.41858]
[1759325765344,0.80491942,4298.0,4297.9,3.95018]
[1759325765345,0.49161942,4298.0,4297.9,3.95018]
[1759325765645,0.41851,4298.7,4298.3,0.41854]
[1759325765848,0.3133,4298.5,4298.4,0.246]
[1759325766038,0.80481544,4298.5,4298.4,0.5698]
[1759325766244,0.49151544,4298.5,4298.4,0.5698]
[1759325766448,3.5211,4298.9,4298.4,0.5698]
[1759325766449,3.2078,4298.9,4298.8,0.3238]
[1759325766752,3.2078,4298.9,4298.8,0.5698]
[1759325767743,0.00264663,4299.5,4299.4,0.41844]
[1759325767941,0.00264663,4299.5,4299.4,4.19604]
[1759325768336,0.00264663,4299.5,4299.4,44.99604]
[1759325768549,0.00264663,4299.5,4299.4,4.19604]
[1759325769049,0.00264663,4299.5,4299.4,44.99604]
[1759325770149,0.00264663,4299.5,4299.4,0.246]
[1759325770457,0.31594663,4299.5,4299.4,0.246]
[1759325770943,0.00264663,4299.5,4299.4,0.246]
[1759325771149,0.3133,4299.4,4299.1,0.41846]
[1759325771352,0.3133,4299.0,4298.9,3.2078]
[1759325771645,0.73182,4298.5,4298.0,0.4531]
[1759325771849,0.3133,4298.4,4298.2,0.246]
[1759325772352,0.73183,4298.4,4298.2,0.66454]
[1759325772649,0.3133,4298.3,4298.2,0.66454]
[1759325772850,0.3133,4298.3,4298.2,0.66354]
[1759325773146,0.41857,4298.0,4297.9,3.2078]
[1759325773343,0.3133,4297.8,4297.7,0.00252711]
[1759325774047,0.48744454,4297.8,4297.7,0.32632711]
[1759325774350,0.41858,4297.9,4297.7,0.32632711]
[1759325774648,0.80072739,4297.8,4297.7,0.00252711]
[1759325775248,0.41867,4297.0,4296.8,0.246]
[1759325775542,1.04655,4297.5,4297.0,0.41866]
[1759325775543,3.2078,4297.5,4297.0,0.41866]
[1759325775743,0.41858,4297.9,4297.7,0.3238]
[1759325776044,0.41861,4297.6,4297.4,0.246]
[1759325776350,0.41859,4297.8,4297.4,0.66683719]
[1759325776650,0.41858,4297.9,4297.6,0.3238]
[1759325776844,0.41859,4297.8,4297.6,0.4186]
[1759325777051,3.2078,4298.1,4298.0,0.41857]
[1759325777248,3.2078,4298.1,4298.0,0.6991]
[1759325777550,0.2716,4297.9,4297.4,0.00221719]
[1759325777750,3.4794,4297.5,4297.4,0.00221719]
[1759325779348,0.2716,4297.9,4297.6,0.3238]
[1759325779545,0.41859,4297.8,4297.6,0.3238]
[1759325779940,0.2716,4297.9,4297.4,0.00221719]
[1759325780254,3.4794,4297.5,4297.4,0.00221719]
[1759325781553,3.4794,4297.5,4297.4,0.31161719]
[1759325781744,3.2078,4297.5,4297.4,0.31161719]
[1759325781952,0.4186,4297.7,4297.6,0.4186]
[1759325782254,0.68882,4297.5,4297.4,0.00221719]
[1759325782442,3.98792,4297.5,4297.4,0.00221719]
[1759325782646,3.98792,4297.5,4296.3,3.2078]
[1759325782647,0.268,4296.4,4296.3,0.245]
[1759325782842,0.41872,4296.5,4296.3,0.97313]
[1759325783049,0.41872,4296.5,4296.3,0.5544]
[1759325783248,0.268,4296.6,4296.3,0.5544]
[1759325783447,0.41871,4296.5,4296.3,0.5544]
[1759325783648,0.42099685,4296.5,4296.4,0.3343]
[1759325783853,0.00228685,4296.5,4296.4,0.3343]
[1759325784550,3.2078,4297.2,4297.1,0.75295]
[1759325784750,3.2078,4297.2,4297.1,0.99895]
[1759325784951,0.41862,4297.5,4297.4,0.75292]
[1759325785352,3.2078,4297.7,4297.6,0.3343]
[1759325785555,3.21057805,4297.7,4297.6,0.3343]
[1759325785956,0.00277805,4297.7,4297.6,0.3343]
[1759325786346,0.00277805,4297.7,4297.6,0.5803]
[1759325786748,0.268,4297.6,4297.0,3.3421]
[1759325787051,0.41863,4297.4,4297.3,0.41863]
[1759325787651,0.41863,4297.4,4297.3,0.3343]
[1759325787849,0.41864,4297.3,4297.1,0.66465]
[1759325788149,0.41864,4297.3,4297.1,0.99895]
[1759325788352,0.41867,4296.9,4296.7,0.75299]
[1759325788552,0.268,4297.5,4296.8,0.3343]
[1759325788754,0.41863,4297.4,4297.0,0.41866]
[1759325788953,0.41861,4297.6,4297.0,0.1343]
[1759325789159,0.00277805,4297.7,4297.6,0.3343]
[1759325789355,0.00277805,4297.7,4297.6,0.5803]
[1759325789554,0.00277805,4297.7,4297.6,46.3803]
[1759325789759,3.2078,4298.7,4298.6,0.3343]
[1759325790658,3.20966431,4298.7,4298.6,0.3343]
[1759325791459,0.00186431,4298.7,4298.6,5.3343]
[1759325791660,0.00186431,4298.7,4298.5,0.75282]
[1759325791855,0.00186431,4298.7,4298.5,0.75281]
[1759325792063,0.00186431,4298.7,4298.5,0.41851]
[1759325792259,0.00186431,4298.7,4298.6,0.3343]
[1759325792657,0.41852,4298.5,4298.4,0.3343]
[1759325792864,0.41853,4298.4,4298.3,0.66453]
[1759325793057,0.268,4298.5,4298.3,0.99883]
[1759325793364,0.41851,4298.6,4298.5,0.75281]
[1759325793761,0.41851,4298.6,4298.5,0.3343]
[1759325794860,0.00186431,4298.7,4298.3,0.246]
[1759325795058,0.41855,4298.2,4298.1,0.3343]
[1759325795658,0.41852,4298.5,4298.3,0.75283]
[1759325796056,0.41852,4298.5,4298.3,0.3343]
[1759325796256,0.268,4298.6,4298.4,0.3343]
[1759325796466,0.41852,4298.5,4298.4,0.3343]
[1759325796758,0.268,4298.6,4298.4,0.75282]
[1759325796965,0.42036431,4298.7,4298.6,0.3343]
[1759325797759,0.42036431,4298.7,4298.1,0.245]
[1759325797760,0.41854,4298.4,4298.2,0.41854]
[1759325797964,0.00186431,4298.7,4298.2,0.3343]
[1759325798264,0.41852,4298.5,4298.3,0.41853]
[1759325798459,0.00186431,4298.7,4298.1,0.245]
[1759325798460,0.42036431,4298.7,4298.2,0.3343]
[1759325798659,0.268,4298.0,4297.9,0.1861]
[1759325799768,0.41856,4298.1,4297.9,0.1861]
[1759325799956,0.41856,4298.1,4298.0,0.3343]
[1759325800360,0.41856,4298.1,4297.9,0.1861]
[1759325800564,0.268,4298.0,4297.9,0.1861]
[1759325801565,0.268,4298.2,4297.4,0.75292]
[1759325801865,3.2078,4297.6,4297.5,0.4686]
[1759325803261,3.4758,4297.6,4297.0,0.1343]
[1759325803467,0.41867,4297.0,4296.9,0.3343]
[1759325803669,0.68667,4297.0,4296.9,0.3343]
[1759325803870,0.41865,4297.2,4297.1,0.3343]
[1759325804368,0.41867,4296.9,4296.7,0.66368]
[1759325804568,0.41867,4296.9,4296.8,0.3343]
[1759325804863,0.268,4296.6,4296.3,0.42058638]
[1759325805065,0.41871,4296.5,4296.3,0.75488638]
[1759325805265,3.62651,4296.5,4296.3,0.00186638]
[1759325805469,0.268,4296.4,4296.3,0.33616638]
[1759325805671,3.2078,4296.5,4296.4,0.3343]
[1759325805865,3.2078,4297.1,4296.5,0.1343]
[1759325806070,3.2078,4297.1,4296.9,0.75296]
[1759325806368,3.2078,4297.6,4297.5,0.3343]
[1759325806564,3.2078,4297.6,4297.5,0.4686]
[1759325807165,3.2078,4297.6,4297.5,0.3343]
[1759325807365,3.2078,4297.6,4297.5,0.4686]
[1759325808461,0.41865,4297.2,4297.0,0.3343]
[1759325808670,0.268,4297.0,4296.8,0.41868]
[1759325808866,3.2078,4297.1,4297.0,0.4686]
[1759325809062,3.2078,4297.1,4296.5,0.1343]
[1759325809063,0.41868,4296.9,4296.5,0.1343]
[1759325809262,0.41868,4296.9,4296.7,0.3343]
[1759325809263,0.68668,4296.9,4296.7,0.3343]
[1759325809458,3.2078,4297.1,4296.7,0.3343]
[1759325809459,0.68669,4296.8,4296.7,0.41869]
[1759325809666,0.41869,4296.7,4296.5,1.1323]
[1759325809875,0.268,4296.4,4296.3,0.00186638]
[1759325810070,3.2078,4296.6,4296.5,0.3343]
[1759325810259,0.41867,4296.9,4296.5,0.4686]
[1759325810571,3.62645,4297.2,4297.0,0.41866]
[1759325810764,3.2078,4297.2,4297.1,0.3343]
[1759325811372,0.41865,4297.1,4297.0,0.41866]
[1759325811768,0.268,4297.2,4297.1,0.3343]
[1759325811967,0.1223,4297.0,4296.3,0.00186638]
[1759325812172,0.4187,4296.6,4296.3,0.00186638]
[1759325812369,3.2078,4296.7,4296.3,0.00186638]
[1759325812571,3.2078,4296.7,4296.6,0.4187]
[1759325812572,3.62649,4296.7,4296.6,0.4187]
[1759325812774,3.2078,4296.7,4296.6,0.753]
[1759325813071,0.41865,4297.1,4297.0,0.41866]
[1759325813265,0.41865,4297.1,4297.0,0.3343]
[1759325813874,3.2078,4297.2,4297.1,0.41865]
[1759325814071,3.2078,4297.2,4297.1,0.73865]
[1759325814568,3.2078,4297.8,4297.7,0.73859]
[1759325816180,3.62634,4298.3,4298.1,0.73855]
[1759325816478,0.41857,4298.0,4297.9,0.32]
[1759325816670,0.6866,4297.7,4297.2,0.1861]
[1759325816976,0.68662,4297.5,4297.4,0.41862]
[1759325817171,0.68663,4297.3,4297.2,0.1861]
[1759325817367,0.268,4297.3,4297.2,0.1861]
[1759325817571,0.6866,4297.6,4297.3,0.73863]
[1759325817772,0.41862,4297.5,4297.3,0.73863]
[1759325817972,0.41862,4297.5,4297.4,0.32]
[1759325818174,0.68663,4297.3,4297.2,0.1861]
[1759325818771,0.268,4297.5,4297.4,0.41862]
[1759325819266,3.2078,4297.7,4297.6,0.32]
[1759325821077,0.41855,4298.2,4298.1,0.73856]
[1759325821273,0.48226908,4298.2,4298.1,0.73856]
[1759325821575,3.2078,4298.3,4298.2,0.32]
[1759325821782,3.62634,4298.3,4298.1,0.41856]
[1759325821980,3.2078,4298.3,4298.2,0.32]
[1759325822478,0.268,4298.2,4297.7,0.1861]
[1759325822677,0.41858,4297.9,4297.7,0.1861]
[1759325822877,0.268,4297.8,4297.7,0.1861]
[1759325823876,0.68658,4297.8,4297.7,0.1861]
[1759325824475,0.41866,4297.0,4296.8,0.32]
[1759325824671,0.41866,4297.0,4296.4,1.3668]